fUSD/lending_fUSD_20250407
["ID","MTS","AMOUNT","RATE_DAILY","PERIOD"]
[357405035,1744048241685,-500.0,0.00043835,30]
[357405037,1744048241695,-500.0,0.00043835,30]
[357405039,1744048241707,-500.0,0.00043835,30]
[357405041,1744048241717,-731.58,0.00043835,30]
[357405043,1744048241727,-496.57704486,0.00043835,30]
[357405045,1744048241737,-500.0,0.00043835,30]
[357405047,1744048241746,-500.0,0.00043835,30]
[357405049,1744048241755,-500.0,0.00043835,30]
[357405051,1744048241764,-500.0,0.00043835,30]
[357405053,1744048241774,-527.1,0.00043835,30]
[357405055,1744048241784,-500.0,0.00043835,30]
[357405057,1744048241794,-500.0,0.00043835,30]
[357405059,1744048241807,-500.0,0.00043835,30]
[357405061,1744048241817,-500.0,0.00043835,30]
[357405063,1744048241827,-500.0,0.00043835,30]
[357405065,1744048241837,-500.0,0.00043835,30]
[357405067,1744048241847,-500.0,0.00043835,30]
[357405069,1744048241856,-500.0,0.00043835,30]
[357405071,1744048241866,-500.0,0.00043835,30]
[357405073,1744048241876,-500.0,0.00043835,30]
[357405075,1744048241886,-500.0,0.00043835,30]
[357405077,1744048241895,-500.0,0.00043835,30]
[357405079,1744048241905,-500.0,0.00043835,30]
[357405081,1744048241914,-500.0,0.00043835,30]
[357405083,1744048241923,-983.36,0.00043835,30]
[357405085,1744048241933,-500.0,0.00043835,30]
[357405087,1744048241942,-500.0,0.00043835,30]
[357405089,1744048241951,-500.0,0.00043835,30]
[357405091,1744048241960,-500.0,0.00043835,30]
[357405092,1744048241969,-500.0,0.00043835,30]
[357405094,1744048241979,-204.97864344,0.00043835,30]
[357405096,1744048241988,-500.0,0.00043835,30]
[357405098,1744048241997,-640.26126438,0.00043835,30]
[357405100,1744048242007,-746.93,0.00043835,30]
[357405102,1744048242016,-598.59773037,0.00043835,30]
[357405104,1744048242026,-500.0,0.00043835,30]
[357405106,1744048242036,-438.60909909,0.00043835,30]
[357405108,1744048242046,-500.0,0.00043835,30]
[357405110,1744048242056,-579.73,0.00043835,30]
[357405112,1744048242065,-500.0,0.00043835,30]
[357405114,1744048242075,-500.0,0.00043835,30]
[357405116,1744048242084,-500.0,0.00043835,30]
[357405117,1744048242094,-500.0,0.00043835,30]
[357405119,1744048242103,-500.0,0.00043835,30]
[357405121,1744048242113,-500.0,0.00043835,30]
[357405123,1744048242122,-525.55,0.00043835,30]
[357405125,1744048242131,-500.0,0.00043835,30]
[357405127,1744048242142,-515.39295671,0.00043835,30]
[357405129,1744048242152,-516.32,0.00043835,30]
[357405131,1744048242162,-500.0,0.00043835,30]
[357405133,1744048242173,-500.0,0.00043835,30]
[357405135,1744048242185,-500.0,0.00043835,30]
[357405137,1744048242195,-500.0,0.00043835,30]
[357405139,1744048242205,-500.0,0.00043835,30]
[357405140,1744048242215,-500.0,0.00043835,30]
[357405142,1744048242225,-500.0,0.00043835,30]
[357405144,1744048242235,-500.0,0.00043835,30]
[357405146,1744048242245,-573.42,0.00043835,30]
[357405148,1744048242255,-500.0,0.00043835,30]
[357405150,1744048242265,-500.0,0.00043835,30]
[357405152,1744048242276,-500.0,0.00043835,30]
[357405154,1744048242287,-922.0,0.00043835,30]
[357405156,1744048242298,-502.73,0.00043835,30]
[357405158,1744048242313,-500.0,0.00043835,30]
[357405160,1744048242322,-500.0,0.00043835,30]
[357405162,1744048242332,-500.0,0.00043835,30]
[357405164,1744048242342,-455.35,0.00043835,10]
[357405166,1744048242352,-500.0,0.00043835,30]
[357405168,1744048242361,-500.0,0.00043835,30]
[357405170,1744048242371,-500.0,0.00043835,30]
[357405172,1744048242380,-500.0,0.00043835,30]
[357405174,1744048242390,-500.0,0.00043835,30]
[357405176,1744048242400,-535.3218932,0.00043835,30]
[357405178,1744048242409,-676.01,0.00043835,30]
[357405180,1744048242419,-713.49,0.00043835,30]
[357405182,1744048242428,-500.0,0.00043835,30]
[357405184,1744048242437,-573.7,0.00043835,30]
[357405186,1744048242447,-645.47,0.00043835,30]
[357405188,1744048242456,-500.0,0.00043835,30]
[357405190,1744048242466,-500.0,0.00043835,30]
[357405192,1744048242476,-500.0,0.00043835,30]
[357405194,1744048242485,-745.64,0.00043835,30]
[357405196,1744048242494,-500.0,0.00043835,30]
[357405198,1744048242503,-709.41,0.00043835,30]
[357405200,1744048242513,-500.0,0.00043835,30]
[357405202,1744048242522,-191.58498716,0.00043835,30]
[357405203,1744048242532,-500.0,0.00043835,30]
[357405205,1744048242541,-500.0,0.00043835,30]
[357405207,1744048242552,-500.0,0.00043835,30]
[357405209,1744048242561,-771.45,0.00043835,30]
[357405211,1744048242570,-500.0,0.00043835,30]
[357405213,1744048242579,-500.0,0.00043835,30]
[357405215,1744048242588,-685.65,0.00043835,30]
[357405217,1744048242598,-500.0,0.00043835,30]
[357405219,1744048242608,-500.0,0.00043835,30]
[357405221,1744048242617,-500.0,0.00043835,30]
[357405223,1744048242627,-887.14,0.00043835,30]
[357405225,1744048242636,-500.0,0.00043835,30]
[357405227,1744048242647,-500.0,0.00043835,30]
[357405229,1744048242656,-554.86764033,0.00043835,30]
[357405231,1744048242665,-610.58843068,0.00043835,30]
[357405233,1744048242675,-500.0,0.00043835,30]
[357405235,1744048242684,-704.11,0.00043835,30]
[357405237,1744048242696,-568.86,0.00043835,30]
[357405239,1744048242709,-516.91027116,0.00043835,30]
[357405241,1744048242718,-500.0,0.00043835,30]
[357405243,1744048242727,-500.0,0.00043835,30]
[357405245,1744048242738,-500.0,0.00043835,30]
[357405247,1744048242748,-500.0,0.00043835,30]
[357405249,1744048242757,-870.28,0.00043835,30]
[357405251,1744048242766,-1292.97,0.00043835,30]
[357405253,1744048242777,-500.0,0.00043835,30]
[357405255,1744048242785,-500.0,0.00043835,30]
[357405257,1744048242794,-956.05,0.00043835,30]
[357405259,1744048242804,-500.0,0.00043835,30]
[357405261,1744048242814,-305.32913684,0.00043835,30]
[357405263,1744048242824,-500.0,0.00043835,30]
[357405265,1744048242833,-500.0,0.00043835,30]
[357405267,1744048242843,-894.89,0.00043835,30]
[357405269,1744048242853,-1233.89,0.00043835,30]
[357405270,1744048242863,-500.0,0.00043835,30]
[357405273,1744048242872,-560.22,0.00043835,30]
[357405275,1744048242882,-500.0,0.00043835,30]
[357405276,1744048242891,-500.0,0.00043835,30]
[357405278,1744048242901,-339.48140608,0.00043835,30]
[357405280,1744048242911,-1003.59,0.00043835,30]
[357405282,1744048242921,-590.23,0.00043835,30]
[357405284,1744048242930,-564.43,0.00043835,30]
[357405286,1744048242939,-500.0,0.00043835,30]
[357405288,1744048242948,-500.0,0.00043835,30]
[357405290,1744048242958,-1248.78,0.00043835,30]
[357405292,1744048242967,-1011.43817714,0.00043835,30]
[357405294,1744048242976,-500.0,0.00043835,30]
[357405296,1744048242986,-500.0,0.00043835,30]
[357405298,1744048242995,-500.0,0.00043835,30]
[357405300,1744048243005,-529.36196989,0.00043835,30]
[357405302,1744048243014,-1363.48,0.00043835,30]
[357405304,1744048243024,-500.0,0.00043835,30]
[357405306,1744048243033,-500.0,0.00043835,30]
[357405308,1744048243042,-500.0,0.00043835,30]
[357405310,1744048243055,-556.31020591,0.00043835,30]
[357405312,1744048243065,-500.0,0.00043835,30]
[357405314,1744048243074,-500.0,0.00043835,30]
[357405315,1744048243084,-500.0,0.00043835,30]
[357405317,1744048243094,-767.61,0.00043835,30]
[357405319,1744048243104,-658.05,0.00043835,30]
[357405321,1744048243113,-506.29274565,0.00043835,30]
[357405323,1744048243123,-500.0,0.00043835,30]
[357405325,1744048243133,-500.0,0.00043835,30]
[357405327,1744048243144,-500.0,0.00043835,30]
[357405329,1744048243154,-500.0,0.00043835,30]
[357405331,1744048243165,-500.0,0.00043835,30]
[357405333,1744048243176,-500.0,0.00043835,30]
[357405336,1744048243186,-500.0,0.00043835,30]
[357405338,1744048243196,-510.35891011,0.00043835,30]
[357405340,1744048243207,-500.0,0.00043835,30]
[357405342,1744048243217,-500.0,0.00043835,30]
[357405344,1744048243226,-521.98,0.00043835,30]
[357405346,1744048243236,-500.0,0.00043835,30]
[357405348,1744048243246,-500.0,0.00043835,30]
[357405350,1744048243255,-611.31,0.00043835,30]
[357405352,1744048243265,-521.54,0.00043835,30]
[357405356,1744048243275,-500.0,0.00043835,30]
[357405361,1744048243285,-500.0,0.00043835,30]
[357405365,1744048243294,-550.83931437,0.00043835,30]
[357405368,1744048243309,-500.0,0.00043835,30]
[357405369,1744048243318,-565.24,0.00043835,30]
[357405371,1744048243328,-500.0,0.00043835,30]
[357405373,1744048243337,-500.0,0.00043835,30]
[357405375,1744048243347,-500.0,0.00043835,30]
[357405377,1744048243357,-500.0,0.00043835,30]
[357405379,1744048243367,-1901.43,0.00043835,30]
[357405381,1744048243377,-500.0,0.00043835,30]
[357405383,1744048243386,-727.46,0.00043835,30]
[357405385,1744048243396,-500.0,0.00043835,30]
[357405387,1744048243406,-525.73,0.00043835,30]
[357405389,1744048243415,-500.0,0.00043835,30]
[357405391,1744048243424,-511.29315973,0.00043835,2]
[357405393,1744048243433,-500.0,0.00043835,30]
[357405395,1744048243442,-940.83,0.00043835,30]
[357405397,1744048243452,-500.0,0.00043835,30]
[357405399,1744048243462,-1362.83,0.00043835,30]
[357405400,1744048243471,-388.50601603,0.00043835,30]
[357405401,1744048243480,-500.0,0.00043835,30]
[357405402,1744048243490,-931.73,0.00043835,30]
[357405403,1744048243499,-500.0,0.00043835,30]
[357405404,1744048243508,-500.0,0.00043835,30]
[357405405,1744048243518,-500.0,0.00043835,30]
[357405406,1744048243526,-888.98,0.00043835,30]
[357405407,1744048243535,-500.0,0.00043835,30]
[357405408,1744048243543,-2496.67,0.00043835,30]
[357405409,1744048243558,-500.0,0.00043835,30]
[357405410,1744048243567,-500.0,0.00043835,30]
[357405411,1744048243577,-519.62212952,0.00043835,30]
[357405412,1744048243586,-249.23727639,0.00043835,30]
[357405413,1744048243596,-500.0,0.00043835,30]
[357405414,1744048243605,-500.0,0.00043835,30]
[357405415,1744048243615,-609.24,0.00043835,30]
[357405416,1744048243623,-868.34,0.00043835,30]
[357405417,1744048243632,-500.0,0.00043835,30]
[357405418,1744048243640,-500.0,0.00043835,30]
[357405420,1744048243649,-500.0,0.00043835,30]
[357405422,1744048243658,-936.66,0.00043835,30]
[357405423,1744048243667,-686.11,0.00043835,30]
[357405425,1744048243675,-524.35,0.00043835,30]
[357405427,1744048243685,-500.0,0.00043835,30]
[357405428,1744048243697,-500.0,0.00043835,30]
[357405430,1744048243711,-1172.05,0.00043835,30]
[357405434,1744048243720,-846.71,0.00043835,30]
[357405457,1744048243889,-500.0,0.00043835,30]
[357405459,1744048243899,-500.0,0.00043835,30]
[357405461,1744048243908,-916.32,0.00043835,30]
[357405463,1744048243918,-500.0,0.00043835,7]
[357405465,1744048243927,-500.0,0.00043835,2]
[357405467,1744048243937,-595.72,0.00043835,30]
[357405469,1744048243946,-402.92490821,0.00043835,30]
[357405471,1744048243955,-500.0,0.00043835,30]
[357405473,1744048243965,-515.01431965,0.00043835,30]
[357405475,1744048243974,-943.95,0.00043835,30]
[357405477,1744048243983,-810.82,0.00043835,30]
[357405479,1744048243992,-526.96,0.00043835,30]
[357405481,1744048244001,-500.0,0.00043835,30]
[357405483,1744048244010,-500.0,0.00043835,30]
[357405485,1744048244020,-500.0,0.00043835,30]
[357405487,1744048244029,-561.86349537,0.00043835,30]
[357405489,1744048244039,-500.0,0.00043835,30]
[357405491,1744048244048,-542.78190457,0.00043835,30]
[357405493,1744048244057,-500.0,0.00043835,30]
[357405495,1744048244067,-821.16,0.00043835,30]
[357405497,1744048244076,-713.56,0.00043835,30]
[357405499,1744048244086,-380.9352914,0.00043835,30]
[357405501,1744048244096,-500.0,0.00043835,30]
[357405503,1744048244105,-576.37,0.00043835,30]
[357405505,1744048244115,-500.0,0.00043835,30]
[357405507,1744048244124,-708.29,0.00043835,30]
[357405509,1744048244133,-500.0,0.00043835,30]
[357405511,1744048244143,-500.0,0.00043835,30]
[357405512,1744048244152,-500.0,0.00043835,30]
[357405514,1744048244162,-500.0,0.00043835,30]
[357405516,1744048244172,-500.0,0.00043835,30]
[357405518,1744048244181,-922.54,0.00043835,30]
[357405520,1744048244191,-500.0,0.00043835,30]
[357405522,1744048244200,-500.0,0.00043835,30]
[357405524,1744048244209,-500.0,0.00043835,30]
[357405527,1744048244219,-500.0,0.00043835,30]
[357405528,1744048244228,-1014.99,0.00043835,30]
[357405531,1744048244238,-500.0,0.00043835,30]
[357405532,1744048244247,-394.76708408,0.00043835,30]
[357405535,1744048244257,-500.0,0.00043835,30]
[357405538,1744048244266,-592.94,0.00043835,30]
[357405539,1744048244275,-500.0,0.00043835,30]
[357405542,1744048244285,-754.23,0.00043835,30]
[357405543,1744048244294,-500.0,0.00043835,30]
[357405546,1744048244304,-500.0,0.00043835,30]
[357405547,1744048244314,-1085.65,0.00043835,30]
[357405549,1744048244324,-500.0,0.00043835,30]
[357405551,1744048244333,-500.0,0.00043835,30]
[357405553,1744048244343,-597.27,0.00043835,30]
[357405555,1744048244352,-500.0,0.00043835,30]
[357405557,1744048244362,-500.0,0.00043835,30]
[357405559,1744048244372,-541.9,0.00043835,30]
[357405561,1744048244382,-645.0,0.00043835,30]
[357405564,1744048244391,-573.15543055,0.00043835,30]
[357405566,1744048244401,-2140.6,0.00043835,30]
[357405567,1744048244412,-500.0,0.00043835,30]
[357405569,1744048244422,-500.0,0.00043835,30]
[357405571,1744048244431,-437.54707969,0.00043835,30]
[357405573,1744048244441,-500.0,0.00043835,30]
[357405576,1744048244451,-500.0,0.00043835,30]
[357405577,1744048244460,-1033.29,0.00043835,30]
[357405579,1744048244470,-500.0,0.00043835,30]
[357405581,1744048244480,-1130.94,0.00043835,30]
[357405583,1744048244490,-603.48,0.00043835,30]
[357405585,1744048244500,-500.0,0.00043835,30]
[357405587,1744048244510,-500.0,0.00043835,30]
[357405589,1744048244520,-814.94,0.00043835,30]
[357405591,1744048244530,-528.51131798,0.00043835,30]
[357405593,1744048244540,-500.0,0.00043835,10]
[357405595,1744048244552,-783.85,0.00043835,30]
[357405597,1744048244562,-500.0,0.00043835,30]
[357405599,1744048244572,-500.0,0.00043835,30]
[357405601,1744048244581,-500.0,0.00043835,30]
[357405603,1744048244590,-1133.29,0.00043835,30]
[357405605,1744048244601,-500.0,0.00043835,30]
[357405607,1744048244611,-500.0,0.00043835,30]
[357405609,1744048244620,-595.93,0.00043835,30]
[357405611,1744048244629,-500.0,0.00043835,30]
[357405613,1744048244638,-500.0,0.00043835,30]
[357405615,1744048244647,-585.30335479,0.00043835,30]
[357405617,1744048244657,-818.64,0.00043835,30]
[357405619,1744048244666,-496.04022891,0.00043835,30]
[357405621,1744048244676,-500.0,0.00043835,30]
[357405623,1744048244685,-1473.37,0.00043835,30]
[357405625,1744048244699,-615.89,0.00043835,30]
[357405627,1744048244709,-2382.49,0.00043835,30]
[357405629,1744048244718,-254.66,0.00043835,7]
[357405631,1744048244728,-3436.74,0.00043835,30]
[357405633,1744048244739,-500.0,0.00043835,30]
[357405635,1744048244748,-1679.73,0.00043835,30]
[357405637,1744048244758,-500.0,0.00043835,30]
[357405639,1744048244767,-500.0,0.00043835,30]
[357405641,1744048244777,-500.0,0.00043835,30]
[357405643,1744048244786,-1057.16,0.00043835,30]
[357405645,1744048244796,-500.0,0.00043835,30]
[357405647,1744048244806,-500.0,0.00043835,30]
[357405649,1744048244815,-500.0,0.00043835,30]
[357405651,1744048244824,-541.41,0.00043835,30]
[357405653,1744048244834,-639.69,0.00043835,30]
[357405655,1744048244843,-1628.2,0.00043835,30]
[357405657,1744048244852,-500.0,0.00043835,30]
[357405659,1744048244862,-500.0,0.00043835,30]
[357405661,1744048244871,-500.0,0.00043835,30]
[357405663,1744048244881,-1133.86,0.00043835,30]
[357405665,1744048244890,-500.0,0.00043835,30]
[357405667,1744048244900,-681.31,0.00043835,30]
[357405669,1744048244909,-500.0,0.00043835,30]
[357405671,1744048244918,-1314.02,0.00043835,30]
[357405673,1744048244927,-818.8,0.00043835,30]
[357405675,1744048244937,-500.0,0.00043835,30]
[357405677,1744048244947,-500.0,0.00043835,30]
[357405679,1744048244956,-500.0,0.00043835,30]
[357405681,1744048244966,-500.0,0.00043835,30]
[357405683,1744048244976,-500.0,0.00043835,30]
[357405685,1744048244985,-500.0,0.00043835,30]
[357405687,1744048244995,-500.0,0.00043835,30]
[357405689,1744048245004,-500.0,0.00043835,30]
[357405691,1744048245013,-670.31,0.00043835,30]
[357405693,1744048245022,-500.0,0.00043835,30]
[357405695,1744048245033,-809.45,0.00043835,30]
[357405697,1744048245042,-500.0,0.00043835,30]
[357405698,1744048245051,-1828.15,0.00043835,30]
[357405700,1744048245061,-500.0,0.00043835,30]
[357405702,1744048245071,-500.0,0.00043835,30]
[357405704,1744048245081,-161.14124322,0.00043835,30]
[357405706,1744048245090,-690.85,0.00043835,30]
[357405708,1744048245100,-1235.04,0.00043835,30]
[357405710,1744048245109,-500.0,0.00043835,30]
[357405712,1744048245119,-698.79,0.00043835,30]
[357405714,1744048245128,-500.0,0.00043835,30]
[357405716,1744048245137,-1013.42,0.00043835,30]
[357405718,1744048245148,-500.0,0.00043835,30]
[357405720,1744048245159,-500.0,0.00043835,30]
[357405723,1744048245168,-500.0,0.00043835,30]
[357405725,1744048245178,-2087.16,0.00043835,30]
[357405727,1744048245187,-500.0,0.00043835,30]
[357405729,1744048245197,-684.67,0.00043835,30]
[357405730,1744048245206,-859.7,0.00043835,30]
[357405732,1744048245215,-218.50479609,0.00043835,30]
[357405734,1744048245224,-500.0,0.00043835,30]
[357405736,1744048245233,-500.0,0.00043835,30]
[357405738,1744048245243,-512.58,0.00043835,30]
[357405740,1744048245252,-579.54,0.00043835,30]
[357405742,1744048245261,-500.0,0.00043835,30]
[357405744,1744048245270,-753.63,0.00043835,30]
[357405746,1744048245279,-1651.2,0.00043835,30]
[357405748,1744048245288,-500.0,0.00043835,30]
[357405750,1744048245298,-500.0,0.00043835,30]
[357405752,1744048245307,-500.0,0.00043835,30]
[357405754,1744048245316,-500.0,0.00043835,30]
[357405756,1744048245325,-501.98829718,0.00043835,30]
[357405758,1744048245335,-500.0,0.00043835,30]
[357405760,1744048245344,-733.04,0.00043835,30]
[357405762,1744048245353,-500.0,0.00043835,30]
[357405764,1744048245363,-586.2421258,0.00043835,30]
[357405766,1744048245373,-1000.0,0.00043835,120]
[357405768,1744048245382,-500.0,0.00043835,30]
[357405770,1744048245391,-500.0,0.00043835,30]
[357405772,1744048245400,-500.0,0.00043835,30]
[357405774,1744048245409,-500.0,0.00043835,30]
[357405776,1744048245419,-601.09,0.00043835,30]
[357405778,1744048245428,-1159.6,0.00043835,30]
[357405780,1744048245440,-844.72,0.00043835,30]
[357405782,1744048245449,-500.0,0.00043835,30]
[357405784,1744048245458,-500.0,0.00043835,30]
[357405786,1744048245467,-500.0,0.00043835,30]
[357405788,1744048245476,-506.54,0.00043835,30]
[357405790,1744048245485,-500.0,0.00043835,30]
[357405792,1744048245494,-1275.39,0.00043835,30]
[357405794,1744048245503,-500.0,0.00043835,30]
[357405796,1744048245514,-500.0,0.00043835,30]
[357405798,1744048245523,-1533.43,0.00043835,30]
[357405800,1744048245532,-942.88,0.00043835,30]
[357405802,1744048245542,-1162.74,0.00043835,2]
[357405804,1744048245556,-500.0,0.00043835,30]
[357405806,1744048245566,-500.0,0.00043835,30]
[357405808,1744048245575,-806.76,0.00043835,30]
[357405810,1744048245585,-500.0,0.00043835,120]
[357405812,1744048245595,-500.0,0.00043835,30]
[357405814,1744048245605,-500.0,0.00043835,30]
[357405816,1744048245615,-500.0,0.00043835,30]
[357405818,1744048245624,-1080.92,0.00043835,30]
[357405820,1744048245633,-500.0,0.00043835,30]
[357405822,1744048245643,-500.0,0.00043835,30]
[357405824,1744048245652,-500.0,0.00043835,30]
[357405826,1744048245661,-500.0,0.00043835,30]
[357405828,1744048245670,-500.0,0.00043835,30]
[357405830,1744048245679,-500.0,0.00043835,30]
[357405832,1744048245689,-500.0,0.00043835,30]
[357405834,1744048245698,-500.0,0.00043835,30]
[357405836,1744048245710,-1297.42,0.00043835,30]
[357405838,1744048245719,-577.79,0.00043835,30]
[357405840,1744048245728,-500.0,0.00043835,30]
[357405842,1744048245737,-1220.63,0.00043835,30]
[357405844,1744048245746,-500.0,0.00043835,30]
[357405846,1744048245755,-500.0,0.00043835,30]
[357405848,1744048245764,-500.0,0.00043835,30]
[357405850,1744048245773,-500.0,0.00043835,30]
[357405852,1744048245784,-594.58,0.00043835,30]
[357405854,1744048245794,-701.56,0.00043835,30]
[357405856,1744048245806,-500.0,0.00043835,30]
[357405858,1744048245815,-500.0,0.00043835,30]
[357405859,1744048245824,-500.0,0.00043835,30]
[357405861,1744048245833,-1529.09,0.00043835,30]
[357405863,1744048245843,-500.0,0.00043835,30]
[357405865,1744048245852,-498.99894362,0.00043835,30]
[357405867,1744048245861,-500.0,0.00043835,30]
[357405869,1744048245871,-642.04,0.00043835,30]
[357405871,1744048245880,-573.76,0.00043835,30]
[357405873,1744048245889,-500.0,0.00043835,2]
[357405875,1744048245898,-641.3387083,0.00043835,30]
[357405877,1744048245907,-500.0,0.00043835,30]
[357405879,1744048245916,-924.62,0.00043835,30]
[357405881,1744048245926,-500.0,0.00043835,30]
[357405883,1744048245935,-530.69,0.00043835,30]
[357405885,1744048245944,-500.0,0.00043835,30]
[357405887,1744048245953,-500.0,0.00043835,30]
[357405889,1744048245962,-1085.26,0.00043835,30]
[357405891,1744048245971,-1588.38,0.00043835,30]
[357405893,1744048245981,-500.0,0.00043835,30]
[357405895,1744048245990,-500.0,0.00043835,30]
[357405897,1744048245999,-500.0,0.00043835,30]
[357405899,1744048246008,-500.0,0.00043835,30]
[357405901,1744048246017,-500.0,0.00043835,30]
[357405919,1744048246176,-500.0,0.00043835,30]
[357405922,1744048246186,-500.0,0.00043835,30]
[357405925,1744048246196,-500.0,0.00043835,30]
[357405928,1744048246207,-503.87,0.00043835,30]
[357405931,1744048246216,-1791.81,0.00043835,30]
[357405934,1744048246226,-158.644913,0.00043835,30]
[357405937,1744048246236,-8425.456637,0.00043835,30]
[357405940,1744048246246,-500.0,0.00043835,30]
[357405943,1744048246256,-500.0,0.00043835,30]
[357405946,1744048246266,-707.6,0.00043835,30]
[357405949,1744048246276,-500.0,0.00043835,30]
[357405950,1744048246286,-500.0,0.00043835,30]
[357405954,1744048246296,-500.0,0.00043835,30]
[357405955,1744048246315,-500.0,0.00043835,30]
[357405958,1744048246326,-516.71903302,0.00043835,30]
[357405960,1744048246337,-556.76,0.00043835,30]
[357405962,1744048246347,-1010.64,0.00043843,2]
[357405963,1744048246357,-198.46126082,0.00043863,2]
[357405965,1744048246367,-500.0,0.00043873,2]
[357405967,1744048246377,-150.0,0.00043873,2]
[357405969,1744048246386,-150.0,0.00043873,2]
[357405971,1744048246396,-9246.32203264,0.0004388,3]
[357405973,1744048246407,-500.0,0.00043889,30]
[357405976,1744048246418,-12077.10270945,0.0004389,17]
[357405977,1744048246428,-1600.0,0.000439,16]
[357405979,1744048246437,-8562.38698715,0.00043918,15]
[357405981,1744048246447,-27738.9660979,0.00043922,3]
[357405983,1744048246456,-616.3,0.00043931,30]
[357405985,1744048246465,-733.84,0.00043931,30]
[357405987,1744048246475,-611.85,0.00043931,30]
[357405989,1744048246484,-500.0,0.00043931,30]
[357405991,1744048246493,-918.31,0.00043931,30]
[357405993,1744048246502,-500.0,0.00043931,30]
[357405995,1744048246512,-1394.82,0.00043931,30]
[357405997,1744048246521,-1164.25,0.00043931,30]
[357405999,1744048246530,-731.04,0.00043931,30]
[357406001,1744048246539,-48498.44383055,0.00043932,2]
[357406003,1744048246551,-150.0,0.00043981,2]
[357406005,1744048246561,-150.0,0.00043991,2]
[357406007,1744048246570,-9246.32203264,0.00043996,3]
[357406009,1744048246579,-172.29020518,0.00043998,14]
[357406011,1744048246588,-326.53491812,0.00044,18]
[357406013,1744048246599,-500.0,0.00044005,30]
[357406015,1744048246609,-2496.67,0.00044005,30]
[357406017,1744048246618,-762.17,0.00044006,30]
[357406019,1744048246628,-500.0,0.00044006,30]
[357406021,1744048246637,-500.0,0.00044006,30]
[357406023,1744048246646,-1415.94,0.00044006,30]
[357406025,1744048246655,-500.0,0.00044006,30]
[357406027,1744048246664,-504.8,0.00044006,30]
[357406029,1744048246673,-500.0,0.00044006,30]
[357406031,1744048246683,-826.95,0.00044006,30]
[357406033,1744048246695,-580.71,0.00044006,30]
[357406035,1744048246704,-564.68,0.00044006,30]
[357406037,1744048246714,-570.61,0.00044006,30]
[357406039,1744048246723,-500.0,0.00044006,30]
[357406041,1744048246732,-937.86,0.00044006,30]
[357406043,1744048246742,-120992.99,0.00044006,7]
[357406045,1744048246751,-942.11,0.00044006,30]
[357406047,1744048246761,-500.0,0.00044006,30]
[357406049,1744048246771,-685.96,0.00044006,30]
[357406051,1744048246780,-507.03,0.00044006,30]
[357406053,1744048246789,-500.0,0.00044006,30]
[357406055,1744048246800,-718.35,0.00044006,30]
[357406057,1744048246809,-1057.84,0.00044006,30]
[357406059,1744048246818,-3424.04,0.00044006,30]
[357406060,1744048246828,-500.0,0.00044006,30]